fUSD/lending_fUSD_20250926
["ID","MTS","AMOUNT","RATE_DAILY","PERIOD"]
[387825028,1758893443900,-151.0,0.0002,2]
[387825029,1758893443909,-151.0,0.0002,2]
[387825030,1758893443919,-1229.0,0.0002,2]
[387825031,1758893443929,-151.0,0.0002,2]
[387825032,1758893443939,-151.0,0.0002,2]
[387825033,1758893443950,-1229.0,0.0002,2]
[387825034,1758893443960,-151.0,0.0002,2]
[387825035,1758893443970,-151.0,0.0002,2]
[387825036,1758893443980,-1229.0,0.0002,2]
[387825037,1758893443991,-818.0,0.0002,2]
[387825038,1758893444002,-1229.0,0.0002,2]
[387825039,1758893444012,-1229.0,0.0002,2]
[387825040,1758893444023,-151.0,0.0002,2]
[387825041,1758893444034,-151.0,0.0002,2]
[387825042,1758893444043,-151.0,0.0002,2]
[387825043,1758893444053,-151.0,0.0002,2]
[387825044,1758893444063,-151.0,0.0002,2]
[387825045,1758893444073,-151.0,0.0002,2]
[387825046,1758893444083,-151.0,0.0002,2]
[387825047,1758893444093,-151.0,0.0002,2]
[387825048,1758893444102,-151.0,0.0002,2]
[387825049,1758893444112,-818.0,0.0002,2]
[387825050,1758893444122,-151.0,0.0002,2]
[387825051,1758893444132,-151.0,0.0002,2]
[387825052,1758893444142,-818.0,0.0002,2]
[387825053,1758893444152,-818.0,0.0002,2]
[387825055,1758893444161,-818.0,0.0002,2]
[387825056,1758893444173,-818.0,0.0002,2]
[387825057,1758893444182,-818.0,0.0002,2]
[387825058,1758893444192,-818.0,0.0002,2]
[387825059,1758893444202,-818.0,0.0002,2]
[387825060,1758893444211,-818.0,0.0002,2]
[387825061,1758893444221,-818.0,0.0002,2]
[387825062,1758893444231,-818.0,0.0002,2]
[387825063,1758893444241,-818.0,0.0002,2]
[387825064,1758893444251,-818.0,0.0002,2]
[387825065,1758893444260,-151.0,0.0002,2]
[387825066,1758893444270,-818.0,0.0002,2]
[387825067,1758893444280,-295.28233737,0.0002,2]
[387825068,1758893444290,-818.0,0.0002,2]
[387825069,1758893444300,-818.0,0.0002,2]
[387825070,1758893444310,-818.0,0.0002,2]
[387825071,1758893444320,-818.0,0.0002,2]
[387825072,1758893444330,-818.0,0.0002,2]
[387825073,1758893444340,-818.0,0.0002,2]
[387825074,1758893444349,-818.0,0.0002,2]
[387825075,1758893444359,-818.0,0.0002,2]
[387825076,1758893444369,-818.0,0.0002,2]
[387825077,1758893444378,-818.0,0.0002,2]
[387825078,1758893444388,-818.0,0.0002,2]
[387825079,1758893444398,-818.0,0.0002,2]
[387825080,1758893444410,-818.0,0.0002,2]
[387825081,1758893444420,-818.0,0.0002,2]
[387825082,1758893444431,-818.0,0.0002,2]
[387825083,1758893444440,-818.0,0.0002,2]
[387825084,1758893444451,-620.73543628,0.0002,2]
[387825088,1758893444668,-818.0,0.0002,2]
[387825091,1758893444680,-818.0,0.0002,2]
[387825093,1758893444690,-818.0,0.0002,2]
[387825095,1758893444699,-818.0,0.0002,2]
[387825097,1758893444709,-818.0,0.0002,2]
[387825099,1758893444718,-818.0,0.0002,2]
[387825101,1758893444728,-2000.0,0.0002,2]
[387825103,1758893444737,-1000.0,0.0002,2]
[387825105,1758893444746,-1000.0,0.0002,2]
[387825108,1758893444756,-1000.0,0.0002,2]
[387825111,1758893444765,-1000.0,0.0002,2]
[387825113,1758893444775,-1000.0,0.0002,2]
[387825115,1758893444784,-1000.0,0.0002,2]
[387825117,1758893444795,-1000.0,0.0002,2]
[387825119,1758893444805,-1000.0,0.0002,2]
[387825121,1758893444815,-1000.0,0.0002,2]
[387825123,1758893444824,-1000.0,0.0002,2]
[387825125,1758893444834,-1000.0,0.0002,2]
[387825127,1758893444843,-1000.0,0.0002,2]
[387825129,1758893444853,-1000.0,0.0002,2]
[387825131,1758893444862,-1000.0,0.0002,2]
[387825133,1758893444872,-1000.0,0.0002,2]
[387825135,1758893444881,-1000.0,0.0002,2]
[387825137,1758893444891,-1000.0,0.0002,2]
[387825139,1758893444900,-927.89499032,0.0002,2]
[387825141,1758893444910,-1265.58077933,0.0002,2]
[387825143,1758893444919,-200.0,0.0002,2]
[387825145,1758893444931,-1229.0,0.0002,2]
[387825147,1758893444941,-818.0,0.0002,2]
[387825149,1758893444951,-151.0,0.0002,2]
[387825151,1758893444961,-178.76754661,0.0002,2]
[387825153,1758893444970,-500.0,0.0002,2]
[387825155,1758893444979,-818.0,0.0002,2]
[387825157,1758893444989,-500.0,0.0002,2]
[387825159,1758893444998,-158.99994182,0.0002,2]
[387825161,1758893445008,-151.0,0.0002,2]
[387825163,1758893445017,-10757.93074359,0.0002,2]
[387825165,1758893445026,-1510.99265638,0.0002,2]
[387825167,1758893445037,-70175.67515186,0.0002,2]
[387825170,1758893445052,-495.621193,0.0002,2]
[387825177,1758893445164,-472.01634291,0.0002,2]
[387825178,1758893445347,-4377.2,0.0002,2]
[387825179,1758893445359,-5662.0,0.0002,2]
[387825180,1758893445371,-18267.64145301,0.0002,2]
[387825181,1758893445383,-817.68834929,0.0002,2]
[387825182,1758893445395,-3125.49190937,0.0002,2]
[387825183,1758893445409,-2450.08099561,0.0002,2]
[387825184,1758893445421,-5502.26343475,0.0002,2]
[387825185,1758893445853,150.0,0.0001828,2]
[387825205,1758893449854,-150.0,0.0001947,2]
[387825206,1758893449864,-177.70694556,0.0001985,2]
[387825207,1758893449874,-13284.49192269,0.0002,2]
[387825208,1758893450025,-292.99367317,0.0002,2]
[387825209,1758893452190,-4203.9412814,0.0002,2]
[387825226,1758893861785,541.45,0.00030136,120]
[387825227,1758893862512,541.45,0.00030136,120]
[387825228,1758893862735,541.45,0.00030136,120]
[387825229,1758893862995,541.45,0.00030136,120]
[387825230,1758893863149,541.45,0.00030136,120]
[387825231,1758893863336,541.45,0.00030136,120]
[387825232,1758893863844,541.45,0.00030136,120]
[387825233,1758893864028,541.45,0.00030136,120]
[387825234,1758893864188,541.45,0.00030136,120]
[387825235,1758893864442,541.45,0.00030136,120]
[387825236,1758893864711,541.45,0.00030136,120]
[387825237,1758893865635,541.45,0.00030136,120]
[387825238,1758893865830,541.45,0.00030136,120]
[387825239,1758893866016,541.45,0.00030136,120]
[387825240,1758893866179,541.45,0.00030136,120]
[387825241,1758893866326,541.45,0.00030136,120]
[387825242,1758893866717,541.45,0.00030136,120]
[387825243,1758893867032,541.45,0.00030136,120]
[387825244,1758893867199,541.45,0.00030136,120]
[387825245,1758893867342,541.45,0.00030136,120]
[387825246,1758893867507,541.45,0.00030136,120]
[387825247,1758893867672,541.45,0.00030136,120]
[387825248,1758893867797,541.45,0.00030136,120]
[387825249,1758893868041,541.51440809,0.00030136,120]
[387825253,1758893966986,291.63,9.358e-05,2]
[387825254,1758893972777,150.0,0.000171,2]
[387825255,1758893973263,150.0,0.0001828,2]
[387825262,1758894316575,150.0,0.00018,2]
[387825263,1758894317151,150.0,0.00018,2]
[387825264,1758894317358,150.0,0.00018,2]
[387825265,1758894321884,150.0,0.00018,2]
[387825266,1758894323154,150.0,0.00018,2]
[387825267,1758894323875,150.0,0.00018,2]
[387825268,1758894324105,150.0,0.00018,2]
[387825269,1758894336621,150.0,0.00018,2]
[387825270,1758894336702,150.0,0.00018,2]
[387825271,1758894337573,150.0,0.00018,2]
[387825272,1758894337602,101.94786784,0.00018,2]
[387825273,1758894338128,150.0,0.00018,2]
[387825274,1758894340450,150.0,0.00018,2]
[387825276,1758894388151,400.0,0.000301,120]
[387825281,1758894497277,150.0,0.000171,2]
[387825282,1758894497618,150.0,0.0001828,2]
[387825288,1758894586482,-163.20356565,0.00018607,2]
[387825289,1758894589635,-15.57643435,0.00018607,2]
[387825290,1758894591123,-378.35443093,0.00018687,3]
[387825298,1758894631624,-163.402179,0.00018593,2]
[387825299,1758894631634,-195.0,0.0001864,2]
[387825300,1758894631643,-195.0,0.00018669,2]
[387825301,1758894631652,-203.10172585,0.00018687,3]
[387825302,1758894631919,-84.54384322,0.00018687,3]
[387825303,1758894631929,-250.0,0.00018687,2]
[387825304,1758894631939,-133.07867424,0.00018688,2]
[387825305,1758894631950,-95.85132576,0.00018688,2]
[387825306,1758894631960,-1475.25536314,0.0001869,2]
[387825307,1758894631971,-500.0,0.00018712,2]
[387825308,1758894631982,-500.0,0.00018712,2]
[387825309,1758894631992,-216.81222017,0.00018712,2]
[387825310,1758894632001,-250.0,0.00018741,2]
[387825311,1758894632011,-150.0,0.00018956,7]
[387825312,1758894632020,-150.0,0.00019,2]
[387825313,1758894632029,-150.0,0.00019,2]
[387825314,1758894632039,-150.0,0.00019,2]
[387825316,1758894632049,-1200.0,0.00019176,2]
[387825318,1758894632058,-300.0,0.00019177,2]
[387825320,1758894632068,-1767.33,0.00019178,2]
[387825322,1758894632077,-823.28,0.00019178,2]
[387825324,1758894632087,-700.0,0.000192,7]
[387825326,1758894632097,-1500.0,0.000193,7]
[387825328,1758894632106,-164.88,0.00019327,2]
[387825330,1758894632115,-1437.29030965,0.00019388,2]
[387825332,1758894632127,-1466.01219504,0.00019388,2]
[387825339,1758894632283,-466.77034477,0.00019388,2]
[387825348,1758894632357,-2739.6062872,0.00019388,2]
[387825350,1758894632368,-816.0,0.00019388,2]
[387825352,1758894632380,-666.0,0.00019388,2]
[387825409,1758894638305,-280.71648161,0.00019388,2]
[387825411,1758894638318,-1685.22096935,0.00019388,2]
[387825413,1758894638327,-267.12025175,0.00019388,2]
[387825415,1758894638337,-209.40437684,0.00019388,2]
[387825417,1758894638346,-623.89353514,0.000194,2]
[387825423,1758894638389,-294.22488331,0.000194,2]
[387825425,1758894638401,-709.07158155,0.000194,2]
[387825427,1758894638410,-1164.60948795,0.000194,7]
[387825429,1758894638422,-1035.39051205,0.000194,7]
[387825431,1758894638431,-150.0,0.0001947,2]
[387825433,1758894638441,-3000.0,0.000195,7]
[387825435,1758894638451,-189.0,0.00019548,2]
[387825437,1758894638460,-1256.48948795,0.00019551,2]
[387825440,1758894638471,-324.94894874,0.00019551,2]
[387825441,1758894638481,-1395.66298877,0.0001959,2]
[387825444,1758894638492,-185.7754479,0.0001959,2]
[387825446,1758894638501,-619.41914545,0.000196,7]
[387825448,1758894638513,-274.16812175,0.000196,7]
[387825450,1758894638523,-1969.02754875,0.000196,7]
[387825451,1758894638535,-401.616215,0.000196,7]
[387825452,1758894638546,-535.76896905,0.000196,7]
[387825453,1758894638556,-516.91207795,0.000196,7]
[387825454,1758894638565,-946.81894517,0.00019629,2]
[387825455,1758894638577,-519.28351839,0.00019629,2]
[387825456,1758894638588,-115.33597311,0.00019629,2]
[387825457,1758894638598,-322.6107,0.00019639,2]
[387825458,1758894638607,-168.0,0.00019651,2]
[387825459,1758894638616,-1581.43843667,0.00019667,2]
[387825460,1758894638626,-2000.0,0.000197,2]
[387825461,1758894638638,-700.0,0.000197,7]
[387825462,1758894638647,-890.41,0.000197,2]
[387825463,1758894638657,-490.69947037,0.00019706,2]
[387825464,1758894638669,-355.75402227,0.00019706,2]
[387825465,1758894638732,-734.98494403,0.00019706,2]
[387825466,1758894638742,-1425.0,0.00019742,2]
[387825467,1758894638755,-1425.0,0.00019743,2]
[387825468,1758894638764,-165.25505597,0.00019745,2]
[387825469,1758894638776,-511.17288606,0.00019745,2]
[387825470,1758894638872,-905.01049464,0.00019745,2]
[387825471,1758894638882,-3490.76848164,0.00019763,2]
[387825472,1758894638893,-1.12209734,0.0001978,2]
[387825473,1758894638902,-148.87790266,0.0001978,2]
[387825474,1758894638909,-323.17709634,0.00019784,2]
[387825475,1758894638919,-406.64253907,0.00019784,2]
[387825476,1758894638968,-851.61880126,0.00019784,2]
[387825477,1758894638975,-700.0,0.000198,7]
[387825478,1758894638982,-3037.82395,0.000198,2]
[387825479,1758894638989,-190.32905244,0.00019821,2]
[387825480,1758894638996,-1581.43843667,0.00019822,2]
[387825481,1758894639002,-200.0,0.0001984,2]
[387825482,1758894639009,-1425.0,0.00019841,2]
[387825483,1758894639016,-1581.43843667,0.00019861,2]
[387825484,1758894639022,-1000.0,0.00019891,2]
[387825485,1758894639029,-192.51585769,0.00019899,2]
[387825486,1758894639036,-74.24262861,0.000199,2]
[387825487,1758894639046,-118.27322908,0.000199,2]
[387825488,1758894639053,-448.65177092,0.000199,2]
[387825492,1758894640389,-590.70084419,0.000199,2]
[387825493,1758894640407,-3960.64738489,0.000199,2]
[387825494,1758894640417,-8323.5657,0.000199,2]
[387825495,1758894640426,-3191.289,0.000199,2]
[387825496,1758894640435,-175.723,0.000199,2]
[387825497,1758894640444,-700.0,0.000199,7]
[387825498,1758894640454,-7239.68561397,0.000199,2]
[387825499,1758894640463,-192.51585769,0.000199,2]
[387825500,1758894640472,-1581.43843667,0.000199,2]
[387825501,1758894640482,-194.27035148,0.000199,2]
[387825502,1758894640492,-575.36578309,0.000199,2]
[387825503,1758894640501,-6368.68691406,0.000199,2]
[387825504,1758894640511,-1229.0,0.00019967,2]
[387825505,1758894640521,-1229.0,0.00019967,2]
[387825506,1758894640530,-1229.0,0.00019967,2]
[387825507,1758894640539,-1229.0,0.00019967,2]
[387825508,1758894640548,-1229.0,0.00019967,2]
[387825509,1758894640558,-1229.0,0.00019967,2]
[387825510,1758894640568,-1229.0,0.00019967,2]
[387825511,1758894640577,-1229.0,0.00019967,2]
[387825512,1758894640586,-151.0,0.00019967,2]
[387825513,1758894640596,-1229.0,0.00019967,2]
[387825514,1758894640605,-151.0,0.00019967,2]
[387825515,1758894640614,-151.0,0.00019967,2]
[387825516,1758894640624,-1229.0,0.00019967,2]
[387825517,1758894640634,-151.0,0.00019967,2]
[387825518,1758894640644,-151.0,0.00019967,2]
[387825519,1758894640654,-151.0,0.00019967,2]
[387825520,1758894640663,-151.0,0.00019967,2]
[387825521,1758894640673,-151.0,0.00019967,2]
[387825522,1758894640682,-151.0,0.00019967,2]
[387825523,1758894640691,-151.0,0.00019967,2]
[387825524,1758894640701,-151.0,0.00019967,2]
[387825525,1758894640710,-151.0,0.00019967,2]
[387825526,1758894640719,-151.0,0.00019967,2]
[387825527,1758894640729,-151.0,0.00019967,2]
[387825528,1758894640738,-151.0,0.00019967,2]
[387825529,1758894640749,-151.0,0.00019967,2]
[387825530,1758894640759,-151.0,0.00019967,2]
[387825531,1758894640768,-151.0,0.00019967,2]
[387825532,1758894640778,-151.0,0.00019967,2]
[387825533,1758894640787,-151.0,0.00019967,2]
[387825534,1758894640797,-151.0,0.00019967,2]
[387825535,1758894640806,-151.0,0.00019967,2]
[387825536,1758894640815,-151.0,0.00019967,2]
[387825537,1758894640825,-151.0,0.00019967,2]
[387825538,1758894640837,-151.0,0.00019967,2]
[387825539,1758894640847,-151.0,0.00019967,2]
[387825540,1758894640856,-151.0,0.00019967,2]
[387825541,1758894640866,-151.0,0.00019967,2]
[387825542,1758894640875,-151.0,0.00019967,2]
[387825543,1758894640886,-178.76754661,0.00019967,2]
[387825544,1758894640895,-818.0,0.00019967,2]
[387825545,1758894640905,-818.0,0.00019967,2]
[387825546,1758894640914,-818.0,0.00019967,2]
[387825547,1758894640924,-818.0,0.00019967,2]
[387825548,1758894640933,-818.0,0.00019967,2]
[387825549,1758894640945,-818.0,0.00019967,2]
[387825550,1758894640954,-818.0,0.00019967,2]
[387825551,1758894640964,-818.0,0.00019967,2]
[387825552,1758894640973,-818.0,0.00019967,2]
[387825553,1758894640982,-818.0,0.00019967,2]
[387825554,1758894640991,-818.0,0.00019967,2]
[387825555,1758894641001,-818.0,0.00019967,2]
[387825556,1758894641010,-818.0,0.00019967,2]
[387825557,1758894641020,-818.0,0.00019967,2]
[387825558,1758894641030,-818.0,0.00019967,2]
[387825559,1758894641039,-818.0,0.00019967,2]
[387825560,1758894641048,-818.0,0.00019967,2]
[387825561,1758894641057,-818.0,0.00019967,2]
[387825562,1758894641066,-818.0,0.00019967,2]
[387825563,1758894641076,-818.0,0.00019967,2]
[387825564,1758894641085,-818.0,0.00019967,2]
[387825565,1758894641094,-818.0,0.00019967,2]
[387825566,1758894641103,-818.0,0.00019967,2]
[387825567,1758894641112,-818.0,0.00019967,2]
[387825568,1758894641121,-818.0,0.00019967,2]
[387825569,1758894641131,-818.0,0.00019967,2]
[387825570,1758894641141,-818.0,0.00019967,2]
[387825571,1758894641151,-818.0,0.00019967,2]
[387825572,1758894641160,-818.0,0.00019967,2]
[387825573,1758894641169,-818.0,0.00019967,2]
[387825574,1758894641178,-818.0,0.00019967,2]
[387825575,1758894641188,-818.0,0.00019967,2]
[387825576,1758894641197,-818.0,0.00019967,2]
[387825577,1758894641207,-818.0,0.00019967,2]
[387825578,1758894641216,-818.0,0.00019967,2]
[387825579,1758894641226,-818.0,0.00019967,2]
[387825580,1758894641235,-818.0,0.00019967,2]
[387825581,1758894641244,-818.0,0.00019967,2]
[387825582,1758894641254,-818.0,0.00019967,2]
[387825583,1758894641263,-818.0,0.00019967,2]
[387825584,1758894641272,-818.0,0.00019967,2]
[387825585,1758894641282,-818.0,0.00019967,2]
[387825586,1758894641291,-609.73543628,0.00019967,2]
[387825587,1758894641300,-151.0,0.00019967,2]
[387825588,1758894641310,-151.0,0.00019967,2]
[387825589,1758894641319,-151.0,0.00019967,2]
[387825590,1758894641328,-151.0,0.00019967,2]
[387825591,1758894641337,-302.0,0.00019967,2]
[387825592,1758894641347,-159.30599452,0.00019967,2]
[387825593,1758894641356,-818.0,0.00019967,2]
[387825594,1758894641365,-857.73,0.00019967,2]
[387825595,1758894641375,-500.0,0.00019973,2]
[387825596,1758894641385,-500.0,0.00019973,2]
[387825597,1758894641394,-500.0,0.00019973,2]
[387825598,1758894641404,-150.0,0.00019988,2]
[387825599,1758894641416,-150.0,0.00019988,2]
[387825600,1758894641426,-150.0,0.00019988,2]
[387825601,1758894641436,-150.0,0.00019988,2]
[387825602,1758894641445,-200.0,0.00019988,2]
[387825603,1758894641455,-150.0,0.00019988,2]
[387825604,1758894641464,-150.0,0.00019988,2]
[387825605,1758894641473,-150.0,0.00019988,2]
[387825606,1758894641483,-500.0,0.00019988,2]
[387825607,1758894641492,-150.0,0.00019988,2]
[387825608,1758894641501,-1788.0,0.00019988,2]
[387825609,1758894641511,-500.0,0.00019988,2]
[387825610,1758894641520,-150.0,0.00019988,2]
[387825611,1758894641530,-1424.0,0.00019988,2]
[387825612,1758894641540,-529.0,0.00019988,2]
[387825613,1758894641549,-150.0,0.00019988,2]
[387825614,1758894641558,-202.20583273,0.00019988,2]
[387825615,1758894641567,-150.0,0.00019988,2]
[387825616,1758894641576,-150.0,0.00019988,2]
[387825617,1758894641586,-150.0,0.00019988,2]
[387825618,1758894641595,-150.0,0.00019988,2]
[387825619,1758894641605,-150.0,0.00019988,2]
[387825620,1758894641614,-150.0,0.00019988,2]
[387825621,1758894641623,-1038.0,0.00019988,2]
[387825622,1758894641633,-500.0,0.00019988,2]
[387825623,1758894641642,-150.0,0.00019988,2]
[387825624,1758894641651,-150.0,0.00019988,2]
[387825625,1758894641661,-152.19048897,0.00019988,2]
[387825626,1758894641670,-150.0,0.00019988,2]
[387825627,1758894641679,-500.0,0.00019988,2]
[387825628,1758894641689,-236.44714644,0.00019988,2]
[387825629,1758894641699,-500.0,0.00019988,2]
[387825630,1758894641708,-500.0,0.00019988,2]
[387825631,1758894641718,-4003.0,0.0001999,2]
[387825632,1758894641727,-1425.0,0.00019998,2]
[387825633,1758894641736,-300.0,0.00019999,2]
[387825634,1758894641748,-21416.6733587,0.00019999,2]
[387825635,1758894641759,-2850.5762258,0.00019999,2]
[387825636,1758894641768,-400.0,0.00019999,2]
[387825637,1758894641778,-500.0,0.0002,2]
[387825638,1758894641787,-500.0,0.0002,2]
[387825639,1758894641797,-482.16,0.0002,2]
[387825640,1758894641807,-17624.70260678,0.0002,2]
[387825641,1758894641817,-513.0,0.0002,2]
[387825642,1758894641828,-518427.0365982,0.0002,2]
[387825643,1758894641839,-205779.17460878,0.0002,2]
[387825644,1758894641848,-253.11025446,0.0002,7]
[387825645,1758894642049,-1441.46771697,0.0002,5]
[387825646,1758894642062,-25224.4545419,0.0002,2]
[387825647,1758894642072,-45292.13443479,0.0002,5]
[387825648,1758894642082,-8281.57559925,0.0002,4]
[387825649,1758894642091,-251222.15157199,0.0002,2]
[387825650,1758894642105,-4725.57260191,0.0002,2]
[387825651,1758894642164,-6479.06348603,0.0002,2]
[387825652,1758894642176,-1600.0,0.0002,2]
[387825654,1758894642506,-899.84924188,0.0002,2]
[387825655,1758894642518,-329.0207687,0.0002,2]
[387825656,1758894642529,-2172.95400006,0.0002,2]
[387825657,1758894642541,-1260.3,0.0002,2]
[387825658,1758894642552,-1526.23551157,0.0002,2]
[387825681,1758894645303,-287.02540688,0.0002,2]
[387825686,1758894646073,-828.73448787,0.0002,2]
[387825688,1758894646084,-16647.73358036,0.0002,2]
[387825690,1758894646095,-887.48009777,0.0002,2]
[387825693,1758894646111,-433.7526704,0.0002,2]
[387825695,1758894646123,-3095.74817737,0.0002,2]
[387825704,1758894646201,-5136.07367571,0.0002,2]
[387825720,1758894647598,-1129.8,0.0002,2]
[387825721,1758894647610,-1325.5496,0.0002,2]
[387825722,1758894647850,-1844.65228485,0.0002,2]
[387825723,1758894647861,-670.3144,0.0002,2]
[387825724,1758894647873,-679.7176638,0.0002,2]
[387825725,1758894647884,-5300.00652498,0.0002,2]
[387825726,1758894647896,-460.91711393,0.0002,2]
[387825728,1758894683255,20000.0,0.00018,2]
[387825741,1758895021551,150.0,0.00018,2]
[387825745,1758895145193,250.0,0.00015,2]
[387825746,1758895146330,300.0,0.00017,2]
[387825757,1758895440271,-275.99396395,0.00018585,2]
[387825758,1758895442638,-8.82603605,0.00018585,2]
[387825768,1758895483930,-241.06396395,0.00018578,2]
[387825783,1758895487005,-13.46163305,0.00018578,2]
[387825794,1758895512573,150.0,0.00018,2]
[387825795,1758895514665,202.32726448,0.00018,2]
[387825798,1758895515836,150.0,0.00018,2]
[387825799,1758895518154,150.0,0.00018,2]
[387825800,1758895520892,150.0,0.00018,2]
[387825801,1758895523264,150.0,0.00018,2]
[387825802,1758895523481,150.0,0.00018,2]
[387825808,1758895535442,150.0,0.00018,2]
[387825809,1758895536268,150.0,0.00018534,2]
[387825810,1758895536856,150.0,0.00018,2]
[387825811,1758895537437,150.0,0.00018,2]
[387825814,1758895545612,150.0,0.00018,2]
[387825833,1758895726217,249.89,0.00018505,2]
[387825836,1758895799814,500.0,0.00030136,120]
[387825837,1758895799945,500.0,0.00030136,120]
[387825838,1758895800291,500.0,0.00030136,120]
[387825839,1758895800642,500.0,0.00030136,120]
[387825840,1758895800769,500.0,0.00030136,120]
[387825841,1758895801054,500.0,0.00030136,120]
[387825842,1758895801179,500.0,0.00030136,120]
[387825843,1758895801393,500.0,0.00030136,120]
[387825844,1758895801650,500.0,0.00030136,120]
[387825845,1758895801908,500.0,0.00030136,120]
[387825864,1758895832647,-181.67303593,0.00018598,2]
[387825865,1758895832657,-2131.01,0.00018671,2]
[387825866,1758895832667,-300.0,0.00018696,2]
[387825867,1758895832679,-300.0,0.00018696,2]
[387825868,1758895832688,-1200.0,0.00018696,2]
[387825869,1758895832698,-431.99,0.00018716,2]
[387825870,1758895832708,-181.67303593,0.00018782,2]
[387825871,1758895832718,-500.0,0.00018881,2]
[387825872,1758895832727,-152.87360646,0.00018881,2]
[387825873,1758895832736,-131.41591849,0.00018881,2]
[387825874,1758895832748,-134.66300375,0.00018881,2]
[387825875,1758895832758,-234.83760227,0.00018881,2]
[387825876,1758895832768,-393.49618492,0.00018882,2]
[387825877,1758895832795,-22285.38499337,0.00018882,2]
[387825878,1758895832806,-1806.19049671,0.00018882,2]
[387825879,1758895832878,-10998.6677472,0.00018882,2]
[387825880,1758895832889,-636.816,0.00018882,2]
[387825881,1758895832901,-2527.7,0.00018882,2]
[387825882,1758895832913,-4242.68839682,0.00018882,2]
[387825883,1758895832927,-474.50987965,0.00018882,2]
[387825884,1758895833183,-470.44757435,0.00018882,2]
[387825885,1758895833213,-293.77016476,0.00018882,2]
[387825886,1758895833250,-7959.19999998,0.00018882,2]
[387825887,1758895833262,-302.61183806,0.00018882,2]
[387825888,1758895833274,-1512.96643497,0.00018882,2]
[387825897,1758895838180,-5090.15163946,0.00018882,2]
[387825902,1758895838212,-656.63434667,0.00018882,2]
[387825913,1758895838314,-3111.19994583,0.00018882,2]
[387825916,1758895838325,-1928.11220779,0.00018882,2]
[387825918,1758895838338,-2629.97761171,0.00018882,2]
[387825942,1758895838556,-614.68697519,0.00018882,2]
[387825944,1758895838568,-305.37387015,0.00018882,2]
[387825946,1758895838579,-1008.4832349,0.00018882,2]
[387825948,1758895838591,-2696.92625174,0.00018882,2]
[387825957,1758895842425,-32172.4042912,0.00018882,2]
[387825958,1758895842440,-1142.40853948,0.00018882,2]
[387825959,1758895842514,-16637.17137509,0.00018882,2]
[387825960,1758895842525,-9604.57,0.00018882,2]
[387825961,1758895842535,-666.0,0.00018884,3]
[387825963,1758895842545,-150.99,0.00018884,2]
[387825964,1758895842555,-150.0,0.00018889,7]
[387825965,1758895842565,-260.88,0.00018896,2]
[387825966,1758895842575,-1500.0,0.00018899,2]
[387825967,1758895842585,-209.40437684,0.00018999,2]
[387825968,1758895842595,-806.23,0.00019041,2]
[387825969,1758895842605,-806.23,0.00019041,2]